fUST/lending_fUST_20251018
["ID","MTS","AMOUNT","RATE_DAILY","PERIOD"]
[391757118,1760783673410,32.97238282,0.00024249,2]
[391757119,1760783673431,405.95659595,0.00024249,2]
[391757120,1760783673456,500.0,0.00024249,2]
[391757121,1760783673482,500.0,0.00024249,2]
[391757122,1760783673508,500.0,0.00024249,2]
[391757123,1760783673534,500.0,0.00024249,2]
[391757124,1760783673567,500.0,0.00024249,2]
[391757125,1760783673603,500.0,0.00024249,2]
[391757126,1760783673628,500.0,0.00024249,2]
[391757127,1760783673654,500.0,0.00024249,2]
[391757128,1760783673678,500.0,0.00024249,2]
[391757129,1760783673703,500.0,0.00024249,2]
[391757130,1760783673731,500.0,0.00024249,2]
[391757131,1760783673751,601.30290969,0.00024249,2]
[391757132,1760783673773,340.40958965,0.00024249,2]
[391757133,1760783673793,536.38622892,0.00024249,2]
[391757134,1760783673817,500.0,0.00024249,2]
[391757135,1760783673850,500.0,0.00024249,2]
[391757136,1760783673907,500.0,0.00024249,2]
[391757137,1760783673938,500.0,0.00024249,2]
[391757138,1760783673965,500.0,0.00024249,2]
[391757139,1760783673993,115.95467579,0.00024249,2]
[391757140,1760783674016,384.04532421,0.00024249,2]
[391757141,1760783674042,500.0,0.00024249,2]
[391757142,1760783674069,500.0,0.00024249,2]
[391757143,1760783674095,500.0,0.00024249,2]
[391757144,1760783674127,500.0,0.00024249,2]
[391757145,1760783674154,500.0,0.00024249,2]
[391757146,1760783674185,500.0,0.00024249,2]
[391757147,1760783674225,500.0,0.00024249,2]
[391757148,1760783674251,539.03,0.0002424,3]
[391757149,1760783674278,500.0,0.00024249,2]
[391757150,1760783674304,500.0,0.00024249,2]
[391757151,1760783674334,500.0,0.00024249,2]
[391757152,1760783674361,500.0,0.00024249,2]
[391757153,1760783674387,500.0,0.00024249,2]
[391757154,1760783674413,500.0,0.00024249,2]
[391757155,1760783674443,478.63274705,0.00024249,2]
[391757156,1760783674474,500.0,0.00024249,2]
[391757157,1760783674504,500.0,0.00024249,2]
[391757158,1760783674533,500.0,0.00024249,2]
[391757159,1760783674559,500.0,0.00024249,2]
[391757160,1760783674589,98.30192874,0.00024249,2]
[391757161,1760783674610,401.69807126,0.00024249,2]
[391757162,1760783674688,500.0,0.00024249,2]
[391757163,1760783674866,500.0,0.00024249,2]
[391757164,1760783702147,300.0,0.00024249,2]
[391757165,1760783703169,1200.0,0.00024249,2]
[391757166,1760783704327,500.0,0.00024249,2]
[391757167,1760783704363,500.0,0.00024249,2]
[391757168,1760783704407,500.0,0.00024249,2]
[391757169,1760783704439,341.38314237,0.00024249,2]
[391757170,1760783704472,500.0,0.00024249,2]
[391757171,1760783704503,500.0,0.00024249,2]
[391757172,1760783704542,500.0,0.00024249,2]
[391757173,1760783704587,500.0,0.00024249,2]
[391757174,1760783704625,500.0,0.00024249,2]
[391757175,1760783720967,583.840751,0.00024141,2]
[391757176,1760783758848,583.840751,0.00024176,10]
[391757177,1760783762933,300.0,0.00024249,2]
[391757178,1760783780054,7630.25012163,0.00034085,120]
[391757179,1760783790016,179.67673159,0.00024173,2]
[391757180,1760783822427,300.0,0.00024249,2]
[391757181,1760783839292,151.0,0.000234,7]
[391757182,1760783839580,151.0,0.00022,5]
[391757183,1760783840014,151.0,0.000207,4]
[391757184,1760783854879,356.57055278,0.00024173,2]
[391757185,1760783854901,98.38070972,0.00024173,2]
[391757186,1760783864179,3351.40306364,0.00024173,2]
[391757187,1760783882455,300.0,0.00024249,2]
[391757188,1760783934779,417.15472785,0.0002425,2]
[391757189,1760783942670,300.0,0.00024249,2]
[391757190,1760784003075,300.0,0.00024249,2]
[391757191,1760784003675,1200.0,0.00024249,2]
[391757192,1760784009913,178.48,0.0002424,2]
[391757193,1760784021795,823.77908852,0.00024236,2]
[391757194,1760784062532,300.0,0.00024249,2]
[391757195,1760784117546,712.3127001,0.00024097,2]
[391757196,1760784119126,179.67673159,0.00024173,2]
[391757197,1760784122296,300.0,0.00024249,2]
[391757198,1760784124563,1538.82297858,0.00024173,2]
[391757199,1760784124584,695.44573052,0.00024173,2]
[391757200,1760784135357,398.08235467,0.00024173,2]
[391757201,1760784179427,420.365341,0.00024141,2]
[391757202,1760784182359,300.0,0.00024249,2]
[391757203,1760784182801,1000.0,0.00024109,2]
[391757204,1760784183959,420.365341,0.00024176,10]
[391757205,1760784215149,168.0,0.00024167,2]
[391757206,1760784235426,1317.51,0.0002424,3]
[391757207,1760784243061,300.0,0.00024249,2]
[391757208,1760784246311,658.75,0.0002424,3]
[391757209,1760784256917,329.38,0.0002424,3]
[391757210,1760784267742,164.69,0.0002424,3]
[391757211,1760784273296,218.42762035,0.00024249,2]
[391757212,1760784273324,204.48995441,0.00024249,2]
[391757213,1760784273349,500.0,0.00024249,2]
[391757214,1760784273377,500.0,0.00024249,2]
[391757215,1760784273404,289.03365663,0.00024249,2]
[391757216,1760784273430,337.37624766,0.00024249,2]
[391757217,1760784273470,500.0,0.00024249,2]
[391757218,1760784273502,500.0,0.00024249,2]
[391757219,1760784273532,500.0,0.00024249,2]
[391757220,1760784273775,182.00158895,0.00024249,2]
[391757221,1760784274072,96.09216481,0.0002425,2]
[391757222,1760784274096,321.06256304,0.0002425,2]
[391757223,1760784278346,494.08,0.0002424,3]
[391757224,1760784302054,300.0,0.00024249,2]
[391757225,1760784315067,823.77908852,0.00024236,2]
[391757226,1760784362895,300.0,0.00024249,2]
[391757227,1760784384607,1489.51247272,0.0002415,2]
[391757228,1760784392143,242.44462099,0.00024249,2]
[391757229,1760784419913,500.0,0.00024249,2]
[391757230,1760784420304,500.0,0.00024249,2]
[391757231,1760784420392,500.0,0.00024249,2]
[391757232,1760784420575,348.32206038,0.0002415,2]
[391757233,1760784422693,300.0,0.00024249,2]
[391757234,1760784444115,151.0,0.000234,7]
[391757235,1760784444449,151.0,0.00022,9]
[391757236,1760784444751,151.0,0.000207,4]
[391757237,1760784445075,151.0,0.000193,2]
[391757238,1760784445380,151.0,0.000179,2]
[391757239,1760784482430,300.0,0.00024249,2]
[391757240,1760784491165,501.7656319,0.00024249,2]
[391757241,1760784525411,386.736113,0.00024141,2]
[391757242,1760784527186,386.736113,0.00024176,10]
[391757243,1760784542363,300.0,0.00024249,2]
[391757244,1760784559094,502.54298867,0.0002425,2]
[391757245,1760784602207,300.0,0.00024249,2]
[391757246,1760784611842,417.15472785,0.0002425,2]
[391757247,1760784614084,30.87361993,0.00024236,2]
[391757248,1760784627438,-792.90546859,0.00024236,2]
[391757290,1760784631904,-650.2621937,0.0002425,2]
[391757301,1760784632010,-555.11056296,0.0002425,2]
[391757404,1760784635453,421.14647088,0.00024109,2]
[391757437,1760784637896,-162788.7731025,0.0002425,2]
[391757439,1760784637907,-48304.33533015,0.0002425,2]
[391757441,1760784637919,-8186.02382301,0.0002425,2]
[391757443,1760784637930,-30742.51225682,0.0002425,2]
[391757445,1760784637941,-1111.1,0.0002425,2]
[391757449,1760784637959,-1279.02547072,0.0002425,2]
[391757451,1760784637971,-1036.42,0.0002425,2]
[391757453,1760784637981,-115346.43726014,0.0002425,2]
[391757455,1760784637991,-206.32873022,0.0002425,2]
[391757457,1760784638000,-250.0,0.00024275,2]
[391757458,1760784638009,-2000.0,0.000243,3]
[391757460,1760784638018,-500.0,0.000243,2]
[391757462,1760784638028,-818.0,0.00024327,2]
[391757464,1760784638038,-168.0,0.00024338,2]
[391757466,1760784638048,-6051.05633728,0.00024349,2]
[391757469,1760784638057,-150.0,0.00024349,2]
[391757472,1760784638067,-10000.01,0.00024349,2]
[391757475,1760784638077,-28522.2020344,0.00024367,2]
[391757477,1760784638087,-275.0154466,0.00024367,2]
[391757479,1760784638096,-1664.0206968,0.00024374,2]
[391757481,1760784638106,-3817.499399,0.00024374,2]
[391757483,1760784638115,-1024.37440381,0.00024383,4]
[391757485,1760784638125,-600.0,0.00024388,2]
[391757487,1760784638134,-196.0,0.00024395,2]
[391757489,1760784638143,-392.5260468,0.000244,2]
[391757491,1760784638153,-392.5260468,0.000244,2]
[391757493,1760784638163,-392.5260468,0.000244,2]
[391757495,1760784638172,-784.9623325,0.000244,2]
[391757497,1760784638181,-392.5260468,0.000244,2]
[391757499,1760784638190,-786.0,0.00024403,2]
[391757501,1760784638200,-181.907,0.00024404,6]
[391757503,1760784638209,-183.759,0.00024404,6]
[391757505,1760784638218,-196.0,0.00024445,2]
[391757507,1760784638227,-277.0,0.000245,2]
[391757508,1760784638236,-151.0,0.000245,5]
[391757509,1760784638246,-392.5260468,0.000245,2]
[391757510,1760784638256,-392.5260468,0.000245,2]
[391757511,1760784638266,-364.0918658,0.000245,2]
[391757512,1760784638276,-1000.0,0.0002452,2]
[391757513,1760784638285,-502.84977898,0.00024523,9]
[391757514,1760784638295,-500.0,0.00024523,9]
[391757515,1760784638305,-315.0,0.00024531,2]
[391757516,1760784638315,-4202.0,0.00024535,2]
[391757517,1760784638324,-982.0,0.00024536,2]
[391757518,1760784638333,-631.0,0.00024536,2]
[391757519,1760784638343,-2162.0,0.00024536,2]
[391757520,1760784638352,-500.0,0.00024536,2]
[391757521,1760784638362,-28679.06065198,0.00024557,3]
[391757522,1760784638374,-402.78104431,0.00024557,3]
[391757523,1760784638383,-160.0,0.00024557,3]
[391757524,1760784638392,-235.563625,0.00024557,7]
[391757525,1760784638402,-151.0,0.00024557,7]
[391757527,1760784638411,-151.0,0.00024557,7]
[391757529,1760784638420,-151.0,0.00024557,7]
[391757531,1760784638429,-151.0,0.00024557,7]
[391757533,1760784638439,-151.0,0.00024557,7]
[391757534,1760784638449,-151.0,0.00024557,7]
[391757536,1760784638459,-151.0,0.00024557,7]
[391757539,1760784638468,-151.0,0.00024557,7]
[391757540,1760784638478,-612.272005,0.00024557,7]
[391757542,1760784638487,-151.0,0.00024557,7]
[391757544,1760784638497,-612.272005,0.00024557,7]
[391757547,1760784638506,-151.0,0.00024557,7]
[391757548,1760784638516,-612.272005,0.00024557,7]
[391757550,1760784638526,-151.0,0.00024557,7]
[391757553,1760784638535,-612.272005,0.00024557,7]
[391757555,1760784638546,-151.0,0.00024557,7]
[391757557,1760784638555,-151.0,0.00024557,7]
[391757559,1760784638564,-151.0,0.00024557,7]
[391757560,1760784638574,-180.734418,0.00024557,7]
[391757562,1760784638583,-151.0,0.00024557,7]
[391757564,1760784638592,-151.0,0.00024557,7]
[391757566,1760784638602,-281.0,0.000246,2]
[391757568,1760784638610,-151.0,0.000246,5]
[391757570,1760784638619,-151.0,0.000246,8]
[391757572,1760784638628,-150.0,0.000246,5]
[391757574,1760784638637,-1006.901418,0.000246,2]
[391757577,1760784638649,-250.0,0.000246,10]
[391757578,1760784638659,-600.0,0.00024642,2]
[391757580,1760784638669,-151.0,0.00024642,7]
[391757583,1760784638678,-177.662672,0.00024642,7]
[391757584,1760784638687,-151.0,0.00024642,7]
[391757586,1760784638697,-151.0,0.00024642,7]
[391757588,1760784638706,-277.113504,0.00024642,7]
[391757591,1760784638716,-151.0,0.00024642,7]
[391757593,1760784638725,-151.0,0.00024642,7]
[391757594,1760784638734,-366.43651389,0.00024657,2]
[391757597,1760784638744,-344.94014388,0.00024657,2]
[391757599,1760784638753,-500.0,0.00024657,2]
[391757600,1760784638763,-616.85422192,0.00024657,2]
[391757602,1760784638773,-282.34332874,0.00024657,2]
[391757605,1760784638783,-222.89585749,0.00024657,2]
[391757606,1760784638792,-500.0,0.00024657,2]
[391757609,1760784638803,-373.40665868,0.00024657,2]
[391757611,1760784638812,-459.82908688,0.00024657,2]
[391757613,1760784638823,-492.47989854,0.00024657,2]
[391757615,1760784638836,-500.0,0.00024657,2]
[391757617,1760784638848,-369.52992998,0.00024657,2]
[391757620,1760784638861,-500.0,0.00024657,2]
[391757622,1760784638871,-500.0,0.00024657,2]
[391757624,1760784638883,-500.0,0.00024657,2]
[391757626,1760784638895,-500.0,0.00024657,2]
[391757629,1760784638907,-463.01184995,0.00024657,2]
[391757631,1760784638919,-329.83372466,0.00024657,2]
[391757633,1760784638932,-500.0,0.00024657,2]
[391757634,1760784638944,-400.08042631,0.00024657,2]
[391757635,1760784638956,-500.0,0.00024657,2]
[391757637,1760784638969,-500.0,0.00024657,2]
[391757639,1760784638983,-450.90147129,0.00024657,2]
[391757641,1760784638995,-484.29883622,0.00024657,2]
[391757643,1760784639007,-500.0,0.00024657,2]
[391757645,1760784639020,-510.09736417,0.00024657,2]
[391757646,1760784639031,-470.74962897,0.00024657,2]
[391757647,1760784639043,-500.0,0.00024657,2]
[391757648,1760784639056,-202.16934672,0.00024657,2]
[391757649,1760784639069,-509.29133073,0.00024657,2]
[391757650,1760784639081,-500.0,0.00024657,2]
[391757651,1760784639092,-500.0,0.00024657,2]
[391757652,1760784639104,-500.0,0.00024657,2]
[391757653,1760784639116,-500.0,0.00024657,2]
[391757654,1760784639128,-500.0,0.00024657,2]
[391757655,1760784639141,-151.0,0.00024657,3]
[391757656,1760784639153,-151.0,0.00024657,3]
[391757657,1760784639167,-503.63384918,0.00024657,2]
[391757658,1760784639179,-151.0,0.00024657,3]
[391757659,1760784639193,-151.0,0.00024657,3]
[391757660,1760784639206,-194.857416,0.00024657,3]
[391757661,1760784639221,-737.08,0.00024657,2]
[391757662,1760784639234,-483.51624943,0.00024657,2]
[391757663,1760784639245,-216.96060995,0.00024657,2]
[391757664,1760784639256,-500.0,0.00024657,2]
[391757665,1760784639271,-465.24601014,0.00024657,2]
[391757666,1760784639285,-500.0,0.00024657,2]
[391757667,1760784639299,-500.0,0.00024657,2]
[391757668,1760784639314,-500.0,0.00024657,2]
[391757669,1760784639326,-500.0,0.00024657,2]
[391757670,1760784639337,-500.0,0.00024657,2]
[391757671,1760784639350,-426.83354033,0.00024657,2]
[391757672,1760784639362,-500.0,0.00024657,2]
[391757673,1760784639375,-593.83086773,0.00024657,2]
[391757674,1760784639386,-350.8791518,0.00024657,2]
[391757675,1760784639397,-504.14227971,0.00024657,2]
[391757676,1760784639408,-500.0,0.00024657,2]
[391757677,1760784639419,-290.02947887,0.00024657,2]
[391757678,1760784639432,-508.96435695,0.00024657,2]
[391757679,1760784639444,-500.0,0.00024657,2]
[391757680,1760784639455,-433.8289077,0.00024657,2]
[391757681,1760784639466,-303.90280605,0.00024657,2]
[391757682,1760784639480,-500.0,0.00024657,2]
[391757683,1760784639491,-500.0,0.00024657,2]
[391757684,1760784639502,-488.77260076,0.00024657,2]
[391757685,1760784639513,-500.0,0.00024657,2]
[391757686,1760784639524,-479.56710786,0.00024657,2]
[391757687,1760784639534,-1000.0,0.00024657,2]
[391757688,1760784639545,-468.80571533,0.00024657,2]
[391757689,1760784639556,-417.09144048,0.00024657,2]
[391757690,1760784639567,-303.73280964,0.00024657,2]
[391757691,1760784639578,-393.75195688,0.00024657,2]
[391757692,1760784639589,-500.0,0.00024657,2]
[391757693,1760784639600,-500.0,0.00024657,2]
[391757694,1760784639611,-500.0,0.00024657,2]
[391757695,1760784639623,-500.0,0.00024657,2]
[391757697,1760784639633,-500.0,0.00024657,2]
[391757699,1760784639644,-500.0,0.00024657,2]
[391757701,1760784639655,-500.0,0.00024657,2]
[391757703,1760784639667,-500.0,0.00024657,2]
[391757705,1760784639678,-500.0,0.00024657,2]
[391757706,1760784639688,-500.0,0.00024657,2]
[391757708,1760784639699,-468.42908662,0.00024657,2]
[391757710,1760784639711,-500.0,0.00024657,2]
[391757711,1760784639721,-546.59197249,0.00024657,2]
[391757713,1760784639732,-500.0,0.00024657,2]
[391757714,1760784639743,-462.57083789,0.00024657,2]
[391757715,1760784639754,-151.0,0.00024657,7]
[391757716,1760784639764,-151.0,0.00024657,7]
[391757717,1760784639775,-151.0,0.00024657,7]
[391757718,1760784639787,-151.0,0.00024657,7]
[391757719,1760784639798,-151.0,0.00024657,7]
[391757720,1760784639810,-500.0,0.00024657,2]
[391757721,1760784639822,-151.0,0.00024657,7]
[391757722,1760784639833,-151.0,0.00024657,7]
[391757724,1760784639844,-151.0,0.00024657,7]
[391757726,1760784639855,-151.0,0.00024657,7]
[391757729,1760784639865,-279.638619,0.00024657,7]
[391757731,1760784639876,-500.0,0.00024657,2]
[391757733,1760784639888,-500.0,0.00024657,2]
[391757735,1760784639900,-500.0,0.00024657,2]
[391757737,1760784639911,-500.0,0.00024657,2]
[391757738,1760784639921,-419.79129057,0.00024657,2]
[391757740,1760784639931,-509.47976735,0.00024657,2]
[391757741,1760784639942,-500.0,0.00024657,2]
[391757743,1760784639953,-487.39732058,0.00024657,2]
[391757745,1760784639964,-500.0,0.00024657,2]
[391757746,1760784639976,-285.45089994,0.00024657,2]
[391757747,1760784639988,-369.71787121,0.00024657,2]
[391757748,1760784639999,-500.0,0.00024657,2]
[391757749,1760784640012,-329.79,0.00024657,2]
[391757750,1760784640024,-500.0,0.00024657,2]
[391757751,1760784640036,-500.0,0.00024657,2]
[391757752,1760784640047,-500.0,0.00024657,2]
[391757753,1760784640059,-280.39648029,0.00024657,2]
[391757754,1760784640070,-500.0,0.00024657,2]
[391757755,1760784640081,-327.62920995,0.00024657,2]
[391757756,1760784640092,-500.0,0.00024657,2]
[391757757,1760784640104,-500.0,0.00024657,2]
[391757758,1760784640115,-500.0,0.00024657,2]
[391757759,1760784640126,-500.0,0.00024657,2]
[391757760,1760784640137,-273.40272193,0.00024657,2]
[391757761,1760784640148,-190.00116363,0.00024657,2]
[391757762,1760784640160,-500.0,0.00024657,2]
[391757763,1760784640171,-500.0,0.00024657,2]
[391757764,1760784640183,-500.0,0.00024657,2]
[391757765,1760784640193,-599.31,0.00024657,2]
[391757766,1760784640204,-500.0,0.00024657,2]
[391757767,1760784640215,-398.22496145,0.00024657,2]
[391757768,1760784640227,-500.0,0.00024657,2]
[391757769,1760784640237,-500.0,0.00024657,2]
[391757770,1760784640250,-500.0,0.00024657,2]
[391757771,1760784640262,-515.78183567,0.00024657,2]
[391757772,1760784640274,-500.0,0.00024657,2]
[391757773,1760784640284,-500.0,0.00024657,2]
[391757774,1760784640295,-500.0,0.00024657,2]
[391757775,1760784640306,-500.0,0.00024657,2]
[391757776,1760784640317,-500.0,0.00024657,2]
[391757777,1760784640327,-500.0,0.00024657,2]
[391757778,1760784640338,-151.0,0.00024657,7]
[391757779,1760784640349,-151.0,0.00024657,7]
[391757780,1760784640361,-262.928332,0.00024657,7]
[391757781,1760784640372,-363.82705571,0.00024657,2]
[391757782,1760784640383,-500.0,0.00024657,2]
[391757783,1760784640395,-500.0,0.00024657,2]
[391757784,1760784640405,-500.0,0.00024657,2]
[391757785,1760784640416,-445.17698148,0.00024657,2]
[391757786,1760784640427,-500.0,0.00024657,2]
[391757787,1760784640439,-500.0,0.00024657,2]
[391757788,1760784640448,-500.0,0.00024657,2]
[391757789,1760784640457,-500.0,0.00024657,2]
[391757790,1760784640466,-500.0,0.00024657,2]
[391757791,1760784640476,-151.0,0.00024657,7]
[391757792,1760784640485,-151.0,0.00024657,7]
[391757793,1760784640703,-151.0,0.00024657,7]
[391757794,1760784640718,-505.66295865,0.00024657,2]
[391757795,1760784640728,-151.0,0.00024657,7]
[391757796,1760784640737,-151.0,0.00024657,7]
[391757797,1760784640746,-151.0,0.00024657,7]
[391757798,1760784640755,-151.0,0.00024657,7]
[391757799,1760784640765,-151.0,0.00024657,7]
[391757800,1760784640774,-500.0,0.00024657,2]
[391757801,1760784640783,-500.0,0.00024657,2]
[391757802,1760784640792,-500.0,0.00024657,2]
[391757803,1760784640802,-500.0,0.00024657,2]
[391757804,1760784640811,-500.0,0.00024657,2]
[391757805,1760784640820,-500.0,0.00024657,2]
[391757806,1760784640830,-500.0,0.00024657,2]
[391757807,1760784640839,-500.0,0.00024657,2]
[391757808,1760784640848,-500.0,0.00024657,2]
[391757809,1760784640858,-500.0,0.00024657,2]
[391757810,1760784640867,-500.0,0.00024657,2]
[391757811,1760784640876,-500.0,0.00024657,2]
[391757812,1760784640885,-500.0,0.00024657,2]
[391757813,1760784640895,-500.0,0.00024657,2]
[391757814,1760784640904,-151.0,0.00024657,7]
[391757815,1760784640913,-1000.0,0.00024657,2]
[391757816,1760784640923,-151.0,0.00024657,7]
[391757817,1760784640932,-506.2,0.00024657,2]
[391757818,1760784640941,-863.08,0.00024657,2]
[391757819,1760784640950,-500.0,0.00024657,2]
[391757820,1760784640960,-500.0,0.00024657,2]
[391757821,1760784640969,-196.94045717,0.00024657,2]
[391757822,1760784640978,-648.06,0.00024657,2]
[391757823,1760784640987,-151.0,0.00024657,7]
[391757824,1760784640997,-151.0,0.00024657,7]
[391757825,1760784641007,-151.0,0.00024657,7]
[391757826,1760784641016,-500.0,0.00024657,2]
[391757827,1760784641026,-151.0,0.00024657,7]
[391757828,1760784641035,-151.0,0.00024657,7]
[391757829,1760784641045,-192.4304022,0.00024657,7]
[391757830,1760784641055,-500.0,0.00024657,2]
[391757831,1760784641064,-500.0,0.00024657,2]
[391757832,1760784641074,-517.79,0.00024657,2]
[391757833,1760784641084,-277.33119037,0.00024657,2]
[391757834,1760784641093,-698.75,0.00024657,2]
[391757835,1760784641103,-500.0,0.00024657,2]
[391757836,1760784641111,-500.0,0.00024657,2]
[391757837,1760784641121,-1464.05,0.00024657,2]
[391757838,1760784641130,-825.98,0.00024657,2]
[391757839,1760784641139,-500.0,0.00024657,2]
[391757840,1760784641149,-500.0,0.00024657,2]
[391757841,1760784641159,-151.0,0.00024657,7]
[391757842,1760784641168,-151.0,0.00024657,7]
[391757843,1760784641177,-500.0,0.00024657,2]
[391757844,1760784641187,-151.0,0.00024657,7]
[391757845,1760784641196,-151.0,0.00024657,7]
[391757846,1760784641205,-500.0,0.00024657,2]
[391757847,1760784641215,-151.0,0.00024657,7]
[391757848,1760784641225,-151.0,0.00024657,7]
[391757849,1760784641234,-151.0,0.00024657,7]
[391757850,1760784641243,-500.0,0.00024657,2]
[391757851,1760784641252,-521.82333849,0.00024657,2]
[391757852,1760784641266,-500.0,0.00024657,2]
[391757853,1760784641275,-500.0,0.00024657,2]
[391757854,1760784641284,-500.0,0.00024657,2]
[391757855,1760784641294,-500.0,0.00024657,2]
[391757856,1760784641303,-151.0,0.00024657,7]
[391757857,1760784641313,-151.0,0.00024657,7]
[391757858,1760784641322,-500.0,0.00024657,2]
[391757859,1760784641331,-151.0,0.00024657,7]
[391757860,1760784641343,-500.0,0.00024657,2]
[391757861,1760784641353,-500.0,0.00024657,2]
[391757862,1760784641363,-627.09,0.00024657,2]
[391757863,1760784641372,-500.0,0.00024657,2]
[391757864,1760784641382,-500.0,0.00024657,2]
[391757865,1760784641391,-160.65666529,0.00024657,2]
[391757866,1760784641401,-643.40044356,0.00024657,2]
[391757867,1760784641411,-508.25562482,0.00024657,2]
[391757868,1760784641421,-259.9060516,0.00024657,2]
[391757869,1760784641430,-500.0,0.00024657,2]
[391757870,1760784641440,-500.0,0.00024657,2]
[391757871,1760784641449,-500.0,0.00024657,2]
[391757872,1760784641459,-500.0,0.00024657,2]
[391757873,1760784641468,-500.0,0.00024657,2]
[391757874,1760784641478,-500.0,0.00024657,2]
[391757875,1760784641488,-401.66876941,0.00024657,2]
[391757876,1760784641497,-500.0,0.00024657,2]
[391757877,1760784641506,-500.0,0.00024657,2]
[391757878,1760784641516,-500.0,0.00024657,2]
[391757879,1760784641524,-500.0,0.00024657,2]
[391757880,1760784641534,-1344.3,0.00024657,2]
[391757881,1760784641543,-356.34704006,0.00024657,2]
[391757882,1760784641553,-151.0,0.00024657,7]
[391757883,1760784641563,-151.0,0.00024657,7]
[391757884,1760784641572,-636.44,0.00024657,2]
[391757885,1760784641582,-151.0,0.00024657,7]
[391757886,1760784641592,-151.0,0.00024657,7]
[391757887,1760784641601,-500.0,0.00024657,2]
[391757888,1760784641611,-151.0,0.00024657,7]
[391757889,1760784641621,-151.0,0.00024657,7]
[391757890,1760784641630,-151.0,0.00024657,7]
[391757891,1760784641640,-151.0,0.00024657,7]
[391757892,1760784641649,-151.0,0.00024657,7]
[391757893,1760784641658,-151.0,0.00024657,7]
[391757894,1760784641668,-268.973057,0.00024657,7]
[391757895,1760784641677,-500.0,0.00024657,2]
[391757896,1760784641687,-500.0,0.00024657,2]
[391757897,1760784641696,-151.0,0.00024657,7]
[391757898,1760784641705,-151.0,0.00024657,7]
[391757899,1760784641715,-151.0,0.00024657,7]
[391757900,1760784641725,-151.0,0.00024657,7]
[391757901,1760784641734,-500.0,0.00024657,2]
[391757902,1760784641743,-175.29422194,0.00024657,7]
[391757903,1760784641753,-500.0,0.00024657,2]
[391757904,1760784641762,-500.0,0.00024657,2]
[391757905,1760784641772,-530.15402645,0.00024657,2]
[391757906,1760784641781,-500.0,0.00024657,2]
[391757907,1760784641791,-500.0,0.00024657,2]
[391757908,1760784641801,-320.32310687,0.00024657,2]
[391757909,1760784641811,-500.0,0.00024657,2]
[391757910,1760784641822,-223.07172999,0.00024657,2]
[391757911,1760784641831,-500.0,0.00024657,2]
[391757912,1760784641841,-500.0,0.00024657,2]
[391757913,1760784641851,-500.0,0.00024657,2]
[391757914,1760784641861,-500.0,0.00024657,2]
[391757915,1760784641872,-500.0,0.00024657,2]
[391757916,1760784641882,-500.0,0.00024657,2]
[391757917,1760784641892,-500.0,0.00024657,2]
[391757918,1760784641902,-177.81778695,0.00024657,2]